[Event "*** Titled Tuesday Blitz"]
[Site "Chess.com"]
[Date "2018.09.04"]
[Round "2"]
[White "Gareth-Bale11"]
[Black "chessmaxusa"]
[Result "1-0"]
[WhiteElo "2623"]
[BlackElo "2508"]
[TimeControl "180+2"]
[EndTime "13:51:04 PDT"]
[Termination "Gareth-Bale11 won by resignation"]

1. d4 {[%clk 0:02:59.5]} 1... c6 {[%clk 0:03:00.9]} 2. c4 {[%clk 0:02:58.9]}
2... d5 {[%clk 0:03:02.3]} 3. cxd5 {[%clk 0:03:00.2]} 3... Qxd5 {[%clk 0:03:01]}
4. Nc3 {[%clk 0:03:00.4]} 4... Qd8 {[%clk 0:03:02.4]} 5. Nf3 {[%clk 0:03:00.6]}
5... Nf6 {[%clk 0:03:03.9]} 6. Bg5 {[%clk 0:03:01.6]} 6... Bg4 {[%clk
0:03:02.3]} 7. e3 {[%clk 0:03:00.3]} 7... Nbd7 {[%clk 0:03:01.5]} 8. Be2 {[%clk
0:03:00.9]} 8... e6 {[%clk 0:03:02.8]} 9. O-O {[%clk 0:03:02.2]} 9... Be7 {[%clk
0:03:03.8]} 10. h3 {[%clk 0:03:03.7]} 10... Bh5 {[%clk 0:03:04.4]} 11. Nd2
{[%clk 0:03:04.3]} 11... Bg6 {[%clk 0:03:04.5]} 12. Nc4 {[%clk 0:03:03.7]} 12...
O-O {[%clk 0:03:04.8]} 13. Bf3 {[%clk 0:03:04.9]} 13... Nb6 {[%clk 0:03:03.1]}
14. Ne5 {[%clk 0:03:05.1]} 14... Nbd5 {[%clk 0:03:04.3]} 15. Qe2 {[%clk
0:03:04.7]} 15... Nd7 {[%clk 0:03:02.2]} 16. Bxe7 {[%clk 0:03:04.1]} 16... Qxe7
{[%clk 0:03:02.6]} 17. Nxg6 {[%clk 0:03:04.3]} 17... hxg6 {[%clk 0:03:04.5]} 18.
Rfd1 {[%clk 0:03:04.3]} 18... Rfd8 {[%clk 0:02:59.9]} 19. Rac1 {[%clk
0:03:04.1]} 19... N7f6 {[%clk 0:02:47.2]} 20. g3 {[%clk 0:02:57.3]} 20... e5
{[%clk 0:02:39.3]} 21. Nxd5 {[%clk 0:02:54]} 21... Nxd5 {[%clk 0:02:39.2]} 22.
Kg2 {[%clk 0:02:53.6]} 22... e4 {[%clk 0:02:36.3]} 23. Bg4 {[%clk 0:02:51.8]}
23... f5 {[%clk 0:02:37.7]} 24. Rh1 {[%clk 0:02:49.2]} 24... fxg4 {[%clk
0:02:33.1]} 25. hxg4 {[%clk 0:02:51.1]} 25... Rf8 {[%clk 0:02:32.1]} 26. Rh4
{[%clk 0:02:46.5]} 26... Qf6 {[%clk 0:02:32]} 27. g5 {[%clk 0:02:44.3]} 27...
Qf7 {[%clk 0:02:29.6]} 28. Rxe4 {[%clk 0:02:43.3]} 28... Qf3+ {[%clk 0:02:31.5]}
29. Qxf3 {[%clk 0:02:43.6]} 1-0

[Event "*** Titled Tuesday Blitz"]
[Site "Chess.com"]
[Date "2018.09.04"]
[Round "2"]
[White "ulises2013"]
[Black "chito89"]
[Result "1/2-1/2"]
[WhiteElo "2469"]
[BlackElo "2711"]
[TimeControl "180+2"]
[EndTime "13:51:11 PDT"]
[Termination "Game drawn by agreement"]

1. e4 {[%clk 0:02:59.5]} 1... e5 {[%clk 0:03:00.1]} 2. Nf3 {[%clk 0:02:59.8]}
2... Nc6 {[%clk 0:03:01.2]} 3. Bc4 {[%clk 0:03:00.7]} 3... Bc5 {[%clk
0:03:01.7]} 4. c3 {[%clk 0:03:01.2]} 4... Nf6 {[%clk 0:03:01.8]} 5. d4 {[%clk
0:03:01.6]} 5... exd4 {[%clk 0:02:59.7]} 6. cxd4 {[%clk 0:03:03.5]} 6... Bb4+
{[%clk 0:02:56.5]} 7. Bd2 {[%clk 0:03:04.6]} 7... Bxd2+ {[%clk 0:02:26.8]} 8.
Nbxd2 {[%clk 0:03:06.5]} 8... d5 {[%clk 0:02:28.1]} 9. exd5 {[%clk 0:03:07.1]}
9... Nxd5 {[%clk 0:02:28.1]} 10. Qb3 {[%clk 0:03:08.1]} 10... Be6 {[%clk
0:02:25.2]} 11. Qxb7 {[%clk 0:02:41.1]} 11... Nce7 {[%clk 0:02:07]} 12. Qb3
{[%clk 0:01:55.5]} 12... O-O {[%clk 0:02:05.1]} 13. O-O {[%clk 0:01:53.1]} 13...
Rb8 {[%clk 0:02:05.7]} 14. Qa3 {[%clk 0:01:44.9]} 1/2-1/2

[Event "*** Titled Tuesday Blitz"]
[Site "Chess.com"]
[Date "2018.09.04"]
[Round "2"]
[White "jeetjain"]
[Black "Bad4life"]
[Result "1-0"]
[WhiteElo "2311"]
[BlackElo "2417"]
[TimeControl "180+2"]
[EndTime "13:51:12 PDT"]
[Termination "jeetjain won by resignation"]

1. e4 {[%clk 0:03:00.5]} 1... d6 {[%clk 0:03:01]} 2. d4 {[%clk 0:02:59.6]} 2...
Nf6 {[%clk 0:03:02.4]} 3. Nc3 {[%clk 0:02:58]} 3... g6 {[%clk 0:03:03.8]} 4. f4
{[%clk 0:02:47.6]} 4... Bg7 {[%clk 0:03:04.3]} 5. Nf3 {[%clk 0:02:37.6]} 5...
O-O {[%clk 0:03:05.2]} 6. e5 {[%clk 0:02:35.6]} 6... dxe5 {[%clk 0:03:07.1]} 7.
fxe5 {[%clk 0:02:36.5]} 7... Nd5 {[%clk 0:03:08.3]} 8. Bc4 {[%clk 0:02:36.3]}
8... Nxc3 {[%clk 0:03:09.7]} 9. bxc3 {[%clk 0:02:38.2]} 9... c5 {[%clk
0:03:11.6]} 10. O-O {[%clk 0:02:35.4]} 10... Bg4 {[%clk 0:03:12.7]} 11. Be3
{[%clk 0:02:34.2]} 11... Nc6 {[%clk 0:03:13.3]} 12. h3 {[%clk 0:02:26.9]} 12...
Bxf3 {[%clk 0:03:14.4]} 13. Rxf3 {[%clk 0:02:20.7]} 13... Rc8 {[%clk 0:03:12.5]}
14. Qf1 {[%clk 0:02:04.1]} 14... cxd4 {[%clk 0:03:06.1]} 15. Rxf7 {[%clk
0:02:04.1]} 15... Rxf7 {[%clk 0:02:56.9]} 16. Qxf7+ {[%clk 0:02:06]} 16... Kh8
{[%clk 0:02:58.3]} 17. cxd4 {[%clk 0:02:04.5]} 17... Nxd4 {[%clk 0:02:47.8]} 18.
Rd1 {[%clk 0:02:02.2]} 18... Rxc4 {[%clk 0:02:48.8]} 19. Qxc4 {[%clk 0:01:56.6]}
19... Nf3+ {[%clk 0:02:49.6]} 20. Kf2 {[%clk 0:01:50.7]} 20... Nh4 {[%clk
0:02:23.5]} 21. Rxd8+ {[%clk 0:01:50.1]} 1-0

[Event "*** Titled Tuesday Blitz"]
[Site "Chess.com"]
[Date "2018.09.04"]
[Round "2"]
[White "xberli"]
[Black "Der_Honigdachs"]
[Result "1-0"]
[WhiteElo "2551"]
[BlackElo "2316"]
[TimeControl "180+2"]
[EndTime "13:52:09 PDT"]
[Termination "xberli won by resignation"]

1. e4 {[%clk 0:03:01.9]} 1... c5 {[%clk 0:03:00]} 2. Nf3 {[%clk 0:03:02.5]} 2...
a6 {[%clk 0:03:00.4]} 3. Nc3 {[%clk 0:03:01.9]} 3... d6 {[%clk 0:02:54.1]} 4. d4
{[%clk 0:03:01.7]} 4... cxd4 {[%clk 0:02:55.9]} 5. Nxd4 {[%clk 0:03:03.6]} 5...
Nf6 {[%clk 0:02:57.4]} 6. Bg5 {[%clk 0:03:02.9]} 6... e6 {[%clk 0:02:58.4]} 7.
f4 {[%clk 0:03:03.6]} 7... h6 {[%clk 0:02:58.7]} 8. Bh4 {[%clk 0:03:04]} 8...
Be7 {[%clk 0:03:00.3]} 9. Qf3 {[%clk 0:03:03]} 9... Nbd7 {[%clk 0:03:01.7]} 10.
O-O-O {[%clk 0:03:02.9]} 10... Qc7 {[%clk 0:03:03.3]} 11. Be2 {[%clk 0:02:57.5]}
11... Rg8 {[%clk 0:03:03]} 12. Bxf6 {[%clk 0:02:54.5]} 12... Bxf6 {[%clk
0:03:01.3]} 13. Rhe1 {[%clk 0:02:54.7]} 13... g5 {[%clk 0:02:46.8]} 14. Qh5
{[%clk 0:02:51.2]} 14... Bxd4 {[%clk 0:02:40.7]} 15. Rxd4 {[%clk 0:02:53.1]}
15... gxf4 {[%clk 0:02:41.4]} 16. Red1 {[%clk 0:02:45.2]} 16... Ne5 {[%clk
0:02:37.3]} 17. Rxd6 {[%clk 0:02:37.8]} 17... Ng6 {[%clk 0:02:34.4]} 18. Qxh6
{[%clk 0:02:25.6]} 18... b5 {[%clk 0:02:27.3]} 19. h4 {[%clk 0:01:56.1]} 19...
Bb7 {[%clk 0:02:17.2]} 20. h5 {[%clk 0:01:54.5]} 20... Ne7 {[%clk 0:02:07.8]}
21. Qxf4 {[%clk 0:01:47.6]} 21... Rxg2 {[%clk 0:02:00.3]} 22. Bf3 {[%clk
0:01:27.9]} 22... Rg8 {[%clk 0:01:56.9]} 23. h6 {[%clk 0:01:25.7]} 23... Ng6
{[%clk 0:01:55.9]} 24. Rxe6+ {[%clk 0:01:25.3]} 24... Kf8 {[%clk 0:01:56]} 1-0

[Event "*** Titled Tuesday Blitz"]
[Site "Chess.com"]
[Date "2018.09.04"]
[Round "2"]
[White "Spring199"]
[Black "Aklanion"]
[Result "0-1"]
[WhiteElo "2211"]
[BlackElo "2116"]
[TimeControl "180+2"]
[EndTime "13:52:16 PDT"]
[Termination "Aklanion won by checkmate"]

1. e4 {[%clk 0:03:01.9]} 1... c5 {[%clk 0:02:55.1]} 2. Nf3 {[%clk 0:03:02]} 2...
e6 {[%clk 0:02:55.3]} 3. d4 {[%clk 0:03:02.6]} 3... cxd4 {[%clk 0:02:57.2]} 4.
Nxd4 {[%clk 0:03:04.3]} 4... Nc6 {[%clk 0:02:58.8]} 5. Nb3 {[%clk 0:03:03.7]}
5... Nf6 {[%clk 0:02:56.7]} 6. Nc3 {[%clk 0:03:04.1]} 6... a6 {[%clk 0:02:53.3]}
7. g3 {[%clk 0:03:04.2]} 7... Qc7 {[%clk 0:02:50.9]} 8. Bg2 {[%clk 0:03:04.5]}
8... b5 {[%clk 0:02:52.4]} 9. O-O {[%clk 0:03:03.8]} 9... h5 {[%clk 0:02:52.8]}
10. Bg5 {[%clk 0:02:54.2]} 10... Ne5 {[%clk 0:02:48.6]} 11. h3 {[%clk
0:02:46.4]} 11... Bb7 {[%clk 0:02:20.6]} 12. f4 {[%clk 0:02:36.3]} 12... Qb6+
{[%clk 0:02:17.7]} 13. Kh2 {[%clk 0:02:28.7]} 13... Nc4 {[%clk 0:02:18.9]} 14.
Qc1 {[%clk 0:02:25.2]} 14... Ne3 {[%clk 0:02:13]} 15. Re1 {[%clk 0:02:15]} 15...
Nxg2 {[%clk 0:02:08.7]} 16. Kxg2 {[%clk 0:02:14.7]} 16... b4 {[%clk 0:02:06.8]}
17. Ne2 {[%clk 0:01:47.6]} 17... Nxe4 {[%clk 0:01:56]} 18. Bh4 {[%clk
0:01:06.6]} 18... Qf2+ {[%clk 0:01:51.1]} 19. Kh1 {[%clk 0:01:06.2]} 19... Nxg3#
{[%clk 0:01:51.9]} 0-1

[Event "*** Titled Tuesday Blitz"]
[Site "Chess.com"]
[Date "2018.09.04"]
[Round "2"]
[White "FMchesstrainer"]
[Black "ViIIagra"]
[Result "0-1"]
[WhiteElo "2341"]
[BlackElo "2792"]
[TimeControl "180+2"]
[EndTime "13:52:39 PDT"]
[Termination "ViIIagra won by resignation"]

1. d4 {[%clk 0:03:01.9]} 1... Nf6 {[%clk 0:02:59.4]} 2. Bg5 {[%clk 0:03:02.5]}
2... g6 {[%clk 0:03:00.9]} 3. Bxf6 {[%clk 0:03:03]} 3... exf6 {[%clk 0:03:02.8]}
4. e3 {[%clk 0:03:04.4]} 4... Bg7 {[%clk 0:03:04.1]} 5. g3 {[%clk 0:03:05.8]}
5... O-O {[%clk 0:03:05.4]} 6. Bg2 {[%clk 0:03:07.4]} 6... f5 {[%clk 0:03:07.1]}
7. Ne2 {[%clk 0:03:09]} 7... d6 {[%clk 0:03:08.7]} 8. Nd2 {[%clk 0:03:10.2]}
8... Nd7 {[%clk 0:03:10.4]} 9. c4 {[%clk 0:03:11.3]} 9... Nf6 {[%clk 0:03:12]}
10. Nc3 {[%clk 0:03:12.3]} 10... h5 {[%clk 0:03:10.5]} 11. h4 {[%clk 0:03:11.5]}
11... Re8 {[%clk 0:03:11.5]} 12. O-O {[%clk 0:03:11.7]} 12... Ng4 {[%clk
0:03:12.7]} 13. b4 {[%clk 0:03:07.5]} 13... f4 {[%clk 0:03:05.7]} 14. exf4
{[%clk 0:03:00.2]} 14... Bxd4 {[%clk 0:03:05.4]} 15. Rc1 {[%clk 0:02:58.1]}
15... Bg7 {[%clk 0:02:59.2]} 16. Nf3 {[%clk 0:02:49.8]} 16... Be6 {[%clk
0:02:57.6]} 17. Nd5 {[%clk 0:02:48.7]} 17... c6 {[%clk 0:02:57.5]} 18. Ne3
{[%clk 0:02:46]} 18... Nxe3 {[%clk 0:02:53.8]} 19. fxe3 {[%clk 0:02:42.9]} 19...
Bg4 {[%clk 0:02:55.4]} 20. Qd3 {[%clk 0:02:37.7]} 20... Qb6 {[%clk 0:02:55]} 21.
Rfe1 {[%clk 0:02:36.7]} 21... Qxb4 {[%clk 0:02:55.4]} 22. Rb1 {[%clk 0:02:29.1]}
22... Qa5 {[%clk 0:02:55.1]} 23. e4 {[%clk 0:02:20.7]} 23... Rad8 {[%clk
0:02:52.7]} 24. Re2 {[%clk 0:02:14.4]} 24... Qc5+ {[%clk 0:02:44.3]} 25. Kh2
{[%clk 0:02:15.2]} 25... b6 {[%clk 0:02:45.9]} 26. Rd1 {[%clk 0:02:00.5]} 26...
a6 {[%clk 0:02:43.7]} 27. Red2 {[%clk 0:01:58.5]} 27... Rd7 {[%clk 0:02:39]} 28.
Re1 {[%clk 0:01:44.3]} 28... Rde7 {[%clk 0:02:27.6]} 29. Qxd6 {[%clk 0:01:40.8]}
29... Bc3 {[%clk 0:02:27.5]} 30. Ne5 {[%clk 0:00:59.2]} 30... Qxd6 {[%clk
0:02:24.7]} 0-1

[Event "*** Titled Tuesday Blitz"]
[Site "Chess.com"]
[Date "2018.09.04"]
[Round "2"]
[White "farzadbfd"]
[Black "Bauxi435"]
[Result "1-0"]
[WhiteElo "2527"]
[BlackElo "2357"]
[TimeControl "180+2"]
[EndTime "13:52:39 PDT"]
[Termination "farzadbfd won by resignation"]

1. e4 {[%clk 0:03:01.9]} 1... c5 {[%clk 0:02:59.9]} 2. Nf3 {[%clk 0:03:01.4]}
2... e6 {[%clk 0:03:01]} 3. d4 {[%clk 0:03:02.1]} 3... cxd4 {[%clk 0:03:02.9]}
4. Nxd4 {[%clk 0:03:03.6]} 4... Nf6 {[%clk 0:03:04.5]} 5. Nc3 {[%clk 0:03:03.7]}
5... Nc6 {[%clk 0:03:05.8]} 6. Ndb5 {[%clk 0:03:03.6]} 6... Bc5 {[%clk
0:03:06.7]} 7. Nd6+ {[%clk 0:03:00.8]} 7... Ke7 {[%clk 0:03:08]} 8. Bf4 {[%clk
0:03:01.9]} 8... e5 {[%clk 0:03:09.2]} 9. Nf5+ {[%clk 0:03:00.3]} 9... Kf8
{[%clk 0:03:10.3]} 10. Bg5 {[%clk 0:03:00.9]} 10... Bb4 {[%clk 0:03:11.3]} 11.
Bd3 {[%clk 0:02:55.1]} 11... h6 {[%clk 0:03:11.7]} 12. Bxf6 {[%clk 0:02:51]}
12... Qxf6 {[%clk 0:03:13.6]} 13. O-O {[%clk 0:02:52.3]} 13... Bxc3 {[%clk
0:03:14.8]} 14. bxc3 {[%clk 0:02:53.7]} 14... Ne7 {[%clk 0:03:11.9]} 15. Ne3
{[%clk 0:02:51.1]} 15... h5 {[%clk 0:03:09.9]} 16. Bc4 {[%clk 0:02:38.8]} 16...
d6 {[%clk 0:03:10]} 17. Qd2 {[%clk 0:02:29.5]} 17... Bd7 {[%clk 0:03:04.9]} 18.
Rad1 {[%clk 0:01:48]} 18... Rh6 {[%clk 0:03:04.3]} 19. Bb3 {[%clk 0:01:29.3]}
19... Rc8 {[%clk 0:03:02.5]} 20. Nc4 {[%clk 0:01:24.7]} 20... Rc6 {[%clk
0:02:51.4]} 21. f4 {[%clk 0:01:25.2]} 21... exf4 {[%clk 0:02:25.1]} 22. Rxf4
{[%clk 0:01:23.3]} 22... Qg6 {[%clk 0:02:23.7]} 23. Na5 {[%clk 0:01:14.6]} 23...
Be6 {[%clk 0:02:16.9]} 24. Nxc6 {[%clk 0:01:12.6]} 24... Bxb3 {[%clk 0:02:02.7]}
25. Nxe7 {[%clk 0:01:10.5]} 1-0

[Event "*** Titled Tuesday Blitz"]
[Site "Chess.com"]
[Date "2018.09.04"]
[Round "2"]
[White "Sethu0025"]
[Black "MFBerna"]
[Result "0-1"]
[WhiteElo "2681"]
[BlackElo "2349"]
[TimeControl "180+2"]
[EndTime "13:53:03 PDT"]
[Termination "MFBerna won by resignation"]

1. e4 {[%clk 0:03:01.9]} 1... c6 {[%clk 0:02:59.7]} 2. d4 {[%clk 0:03:02.7]}
2... d5 {[%clk 0:03:01.6]} 3. e5 {[%clk 0:03:04.4]} 3... c5 {[%clk 0:03:02.2]}
4. dxc5 {[%clk 0:03:04.8]} 4... Nc6 {[%clk 0:02:59.5]} 5. Nf3 {[%clk 0:03:04.8]}
5... Bg4 {[%clk 0:03:00.3]} 6. Bb5 {[%clk 0:03:01.8]} 6... e6 {[%clk 0:02:57.1]}
7. Be3 {[%clk 0:02:59.4]} 7... Qc7 {[%clk 0:02:50.7]} 8. c3 {[%clk 0:02:56.6]}
8... Bxf3 {[%clk 0:02:39.3]} 9. Qxf3 {[%clk 0:02:57.5]} 9... Qxe5 {[%clk
0:02:39.8]} 10. Nd2 {[%clk 0:02:58.4]} 10... Bxc5 {[%clk 0:02:25.5]} 11. O-O-O
{[%clk 0:02:58.9]} 11... Bxe3 {[%clk 0:02:24]} 12. fxe3 {[%clk 0:03:00.8]} 12...
Nf6 {[%clk 0:02:10]} 13. g4 {[%clk 0:03:01.5]} 13... O-O {[%clk 0:01:56.2]} 14.
h4 {[%clk 0:03:01.7]} 14... Ne4 {[%clk 0:01:52.1]} 15. Bd3 {[%clk 0:02:59.9]}
15... Nxc3 {[%clk 0:01:34]} 16. Rdf1 {[%clk 0:02:55.6]} 16... Nb4 {[%clk
0:01:22.6]} 17. e4 {[%clk 0:02:37.4]} 17... Rac8 {[%clk 0:01:08.5]} 18. Bc4
{[%clk 0:02:23.5]} 18... Ncxa2+ {[%clk 0:01:03.5]} 19. Kb1 {[%clk 0:02:23.5]}
19... dxc4 {[%clk 0:01:01]} 20. Rc1 {[%clk 0:02:00.7]} 20... Nxc1 {[%clk
0:00:54.2]} 21. Rxc1 {[%clk 0:02:02.6]} 21... Nd3 {[%clk 0:00:43.1]} 22. Nxc4
{[%clk 0:02:02.5]} 22... Rxc4 {[%clk 0:00:42.1]} 23. Qxd3 {[%clk 0:02:01]} 23...
Qxe4 {[%clk 0:00:35]} 24. Qxe4 {[%clk 0:01:59.1]} 24... Rxe4 {[%clk 0:00:36.9]}
25. Rc7 {[%clk 0:02:00.1]} 25... Rxg4 {[%clk 0:00:37.2]} 0-1

[Event "*** Titled Tuesday Blitz"]
[Site "Chess.com"]
[Date "2018.09.04"]
[Round "2"]
[White "Nowaybacksasha"]
[Black "BlackBoarder"]
[Result "1-0"]
[WhiteElo "2812"]
[BlackElo "2435"]
[TimeControl "180+2"]
[EndTime "13:53:16 PDT"]
[Termination "Nowaybacksasha won by resignation"]

1. d4 {[%clk 0:03:01.9]} 1... Nf6 {[%clk 0:03:00.6]} 2. c4 {[%clk 0:03:03.4]}
2... e6 {[%clk 0:02:55.2]} 3. Nf3 {[%clk 0:03:04.3]} 3... d5 {[%clk 0:02:55.7]}
4. g3 {[%clk 0:03:05.6]} 4... dxc4 {[%clk 0:02:56.8]} 5. Bg2 {[%clk 0:03:06.3]}
5... a6 {[%clk 0:02:58]} 6. O-O {[%clk 0:03:07.4]} 6... Nc6 {[%clk 0:02:59.1]}
7. e3 {[%clk 0:03:07.6]} 7... Rb8 {[%clk 0:02:58.5]} 8. Qe2 {[%clk 0:03:06.8]}
8... b5 {[%clk 0:02:58.7]} 9. b3 {[%clk 0:03:08.4]} 9... cxb3 {[%clk 0:02:59.6]}
10. axb3 {[%clk 0:03:10.3]} 10... Bb7 {[%clk 0:03:00.8]} 11. Bd2 {[%clk
0:02:56.5]} 11... Be7 {[%clk 0:02:55.9]} 12. Rc1 {[%clk 0:02:56.5]} 12... O-O
{[%clk 0:02:55.2]} 13. Ne1 {[%clk 0:02:58.1]} 13... Nb4 {[%clk 0:02:43.3]} 14.
Bxb7 {[%clk 0:02:53.4]} 14... Rxb7 {[%clk 0:02:45.2]} 15. Bxb4 {[%clk
0:02:51.4]} 15... Bxb4 {[%clk 0:02:47.1]} 16. Nd3 {[%clk 0:02:52]} 16... a5
{[%clk 0:02:24.9]} 17. Nd2 {[%clk 0:02:51.3]} 17... Nd5 {[%clk 0:02:19.9]} 18.
Ne4 {[%clk 0:02:46.8]} 18... Qe7 {[%clk 0:02:08.2]} 19. Nec5 {[%clk 0:02:44.4]}
19... Rbb8 {[%clk 0:01:40.4]} 20. Ne5 {[%clk 0:02:45.5]} 20... Bxc5 {[%clk
0:01:00.4]} 21. Rxc5 {[%clk 0:02:45.9]} 21... Rb6 {[%clk 0:00:45.1]} 22. Rxa5
{[%clk 0:02:44.9]} 22... b4 {[%clk 0:00:41.4]} 23. Qc4 {[%clk 0:02:44.4]} 23...
g6 {[%clk 0:00:38.1]} 24. e4 {[%clk 0:02:44.4]} 24... Nf6 {[%clk 0:00:28.9]} 25.
Rxc7 {[%clk 0:02:45]} 25... Qd6 {[%clk 0:00:30.4]} 26. Raa7 {[%clk 0:02:27]}
26... Nxe4 {[%clk 0:00:14.3]} 27. Nxf7 {[%clk 0:02:27.4]} 1-0

[Event "*** Titled Tuesday Blitz"]
[Site "Chess.com"]
[Date "2018.09.04"]
[Round "2"]
[White "NemtsevIgor"]
[Black "LucaBrasi1968"]
[Result "1-0"]
[WhiteElo "2397"]
[BlackElo "2442"]
[TimeControl "180+2"]
[EndTime "13:53:21 PDT"]
[Termination "NemtsevIgor won by resignation"]

1. d4 {[%clk 0:03:01.9]} 1... f5 {[%clk 0:02:58.8]} 2. Nc3 {[%clk 0:03:01.1]}
2... d5 {[%clk 0:02:58.6]} 3. Bg5 {[%clk 0:02:59.5]} 3... g6 {[%clk 0:02:57.2]}
4. h4 {[%clk 0:02:59.1]} 4... Bg7 {[%clk 0:02:57.9]} 5. e3 {[%clk 0:02:57.9]}
5... c6 {[%clk 0:02:59]} 6. Nh3 {[%clk 0:02:54.5]} 6... h6 {[%clk 0:02:58.6]} 7.
Bf4 {[%clk 0:02:55.1]} 7... Be6 {[%clk 0:03:00.2]} 8. Be5 {[%clk 0:02:53.1]}
8... Nf6 {[%clk 0:02:59.2]} 9. Nf4 {[%clk 0:02:52.5]} 9... Bf7 {[%clk
0:03:00.2]} 10. h5 {[%clk 0:02:50.3]} 10... g5 {[%clk 0:03:00.8]} 11. Ng6 {[%clk
0:02:51.4]} 11... Bxg6 {[%clk 0:03:02.1]} 12. hxg6 {[%clk 0:02:52.6]} 12... e6
{[%clk 0:03:01.4]} 13. Be2 {[%clk 0:02:35.7]} 13... Nbd7 {[%clk 0:03:01.9]} 14.
g4 {[%clk 0:02:30]} 14... Nxe5 {[%clk 0:02:59.9]} 15. dxe5 {[%clk 0:02:30.4]}
15... Ne4 {[%clk 0:02:59.6]} 16. gxf5 {[%clk 0:02:26.7]} 16... Nxc3 {[%clk
0:02:50.6]} 17. bxc3 {[%clk 0:02:25.2]} 17... Bxe5 {[%clk 0:02:50]} 18. fxe6
{[%clk 0:02:12.7]} 18... Qf6 {[%clk 0:02:45.1]} 19. Rb1 {[%clk 0:02:06.8]} 19...
O-O-O {[%clk 0:02:42.6]} 20. Bg4 {[%clk 0:02:02.4]} 20... Kb8 {[%clk 0:02:43.1]}
21. Qd3 {[%clk 0:01:50.3]} 21... Bxc3+ {[%clk 0:02:43]} 22. Ke2 {[%clk
0:01:50.1]} 22... Ba5 {[%clk 0:02:35.2]} 23. Qf5 {[%clk 0:01:42.5]} 23... Rdf8
{[%clk 0:02:14.7]} 24. Qxf6 {[%clk 0:01:34.4]} 24... Rxf6 {[%clk 0:02:15.4]} 25.
g7 {[%clk 0:01:35.2]} 25... Re8 {[%clk 0:02:05]} 26. Bh5 {[%clk 0:01:31.7]}
26... Rg8 {[%clk 0:01:25.8]} 27. e7 {[%clk 0:01:27.8]} 27... Re6 {[%clk
0:01:17.1]} 28. Bf7 {[%clk 0:01:15.6]} 1-0

[Event "*** Titled Tuesday Blitz"]
[Site "Chess.com"]
[Date "2018.09.04"]
[Round "2"]
[White "ENEASZ"]
[Black "VladDobrov"]
[Result "0-1"]
[WhiteElo "2520"]
[BlackElo "2720"]
[TimeControl "180+2"]
[EndTime "13:53:36 PDT"]
[Termination "VladDobrov won by resignation"]

1. e4 {[%clk 0:03:01.9]} 1... c5 {[%clk 0:03:00.4]} 2. c3 {[%clk 0:03:02.9]}
2... d5 {[%clk 0:02:57.6]} 3. exd5 {[%clk 0:03:04.8]} 3... Qxd5 {[%clk
0:02:58.6]} 4. d4 {[%clk 0:03:05.7]} 4... Nf6 {[%clk 0:02:58.9]} 5. Nf3 {[%clk
0:03:06]} 5... e6 {[%clk 0:02:59.5]} 6. Be2 {[%clk 0:03:05]} 6... cxd4 {[%clk
0:03:00.2]} 7. cxd4 {[%clk 0:03:05.9]} 7... Nc6 {[%clk 0:03:01.3]} 8. O-O {[%clk
0:03:06.4]} 8... Be7 {[%clk 0:03:01.9]} 9. Nc3 {[%clk 0:03:04.5]} 9... Qd6
{[%clk 0:03:02.9]} 10. Qa4 {[%clk 0:02:56.2]} 10... O-O {[%clk 0:03:01]} 11. Rd1
{[%clk 0:02:56.6]} 11... Bd7 {[%clk 0:02:25.9]} 12. Bg5 {[%clk 0:02:36]} 12...
Rfd8 {[%clk 0:02:18.3]} 13. Bxf6 {[%clk 0:02:16.9]} 13... Bxf6 {[%clk
0:02:18.8]} 14. Ne4 {[%clk 0:02:18.1]} 14... Qe7 {[%clk 0:02:18.4]} 15. Qb3
{[%clk 0:02:19.1]} 15... Na5 {[%clk 0:02:16]} 16. Nxf6+ {[%clk 0:02:18.2]} 16...
Qxf6 {[%clk 0:02:12.2]} 17. Qb4 {[%clk 0:02:19.3]} 17... b6 {[%clk 0:02:11.5]}
18. d5 {[%clk 0:01:41.5]} 18... exd5 {[%clk 0:02:11.1]} 19. Rxd5 {[%clk
0:01:43.4]} 19... Be6 {[%clk 0:02:10.4]} 20. Rdd1 {[%clk 0:01:28.7]} 20... g6
{[%clk 0:02:04.6]} 21. h3 {[%clk 0:01:26.8]} 21... Rac8 {[%clk 0:02:02.9]} 22.
Rxd8+ {[%clk 0:01:21.2]} 22... Rxd8 {[%clk 0:02:03.8]} 23. a3 {[%clk 0:01:10.9]}
23... Nb3 {[%clk 0:02:00.8]} 24. Rd1 {[%clk 0:01:10.3]} 24... Rxd1+ {[%clk
0:01:58]} 25. Bxd1 {[%clk 0:01:12.2]} 25... Qxb2 {[%clk 0:01:55.8]} 26. Bxb3
{[%clk 0:01:12.3]} 26... Qxb3 {[%clk 0:01:55.1]} 27. Qe7 {[%clk 0:01:12.6]}
27... Qd1+ {[%clk 0:01:52.8]} 28. Kh2 {[%clk 0:01:12.4]} 28... Qd7 {[%clk
0:01:54.7]} 29. Qf6 {[%clk 0:01:09.7]} 29... Qd6+ {[%clk 0:01:53.7]} 30. g3
{[%clk 0:01:03.9]} 30... Qxa3 {[%clk 0:01:54.3]} 31. Qd8+ {[%clk 0:01:00.6]}
31... Qf8 {[%clk 0:01:54.8]} 32. Qc7 {[%clk 0:01:01.9]} 32... Qc5 {[%clk
0:01:49.9]} 33. Qd8+ {[%clk 0:01:00.9]} 33... Kg7 {[%clk 0:01:50.5]} 34. Kg1
{[%clk 0:01:01.4]} 34... Qd5 {[%clk 0:01:48.8]} 0-1